bitfinex/quotes_ETHUSD_20260107
["timestamp","ask_amount","ask_price","bid_price","bid_amount"]
[1767804316152,3.15766206,3166.9,3166.1,1.8827295]
[1767804316669,6.31533926,3166.9,3166.1,1.8827295]
[1767804318188,8.05691287,3166.9,3166.1,1.8827295]
[1767804319680,8.05691287,3166.9,3166.1,1.8847295]
[1767804319987,0.001,3166.6,3166.1,1.8847295]
[1767804321476,0.828,3167.7,3166.8,1.8827295]
[1767804321661,6.66363782,3168.5,3166.8,1.8827295]
[1767804321662,1.74157361,3168.0,3166.8,1.8827295]
[1767804322280,6.31293204,3168.1,3166.8,1.8827295]
[1767804322482,6.31293204,3168.1,3167.0,1.8827295]
[1767804322483,1.74157361,3167.9,3167.0,1.8827295]
[1767804322682,1.74157361,3167.9,3166.2,5.6627295]
[1767804322683,1.74157361,3167.8,3166.2,5.6627295]
[1767804322870,6.49878322,3167.9,3166.2,6.4887295]
[1767804322871,1.74157361,3167.6,3166.2,6.4887295]
[1767804323074,1.74157361,3167.4,3166.1,0.002]
[1767804323463,0.25695736,3167.5,3166.1,0.002]
[1767804323464,1.74157361,3167.2,3166.1,0.002]
[1767804323659,1.74157361,3167.1,3166.1,0.002]
[1767804323990,0.25695736,3167.0,3166.1,1.8847295]
[1767804324187,3.15726328,3167.3,3166.1,1.8847295]
[1767804324490,6.31333058,3167.9,3166.3,1.8827295]
[1767804324856,3.15666529,3167.9,3166.3,1.8827295]
[1767804325367,3.15666529,3167.9,3166.5,1.8827295]
[1767804325368,6.31333058,3167.9,3166.5,1.8827295]
[1767804325781,6.31333058,3167.9,3166.7,1.8827295]
[1767804326087,7.18195032,3167.9,3166.7,1.8827295]
[1767804326777,7.18195032,3167.9,3166.8,0.826]
[1767804326979,7.18195032,3167.9,3166.9,1.8827295]
[1767804327292,4.02528503,3167.9,3166.9,1.8827295]
[1767804327486,4.02528503,3167.9,3167.1,1.8827295]
[1767804327487,3.15666529,3167.9,3167.1,1.8827295]
[1767804328789,6.94452024,3168.0,3167.2,1.8827295]
[1767804330384,3.15661352,3168.0,3167.2,1.8827295]
[1767804330558,6.31322704,3168.0,3167.2,1.8827295]
[1767804331390,6.31322704,3168.0,3167.3,1.8827295]
[1767804332492,6.31297576,3168.1,3167.3,1.8847295]
[1767804332662,1.02e-06,3167.7,3167.3,1.8847295]
[1767804332862,1.02e-06,3167.7,3167.3,2.07320245]
[1767804333259,1.02e-06,3167.7,3167.4,1.91886221]
[1767804333795,3.15441435,3168.2,3167.4,1.91886221]
[1767804334013,6.31082567,3168.2,3167.4,1.91886221]
[1767804334600,1.93833681,3168.2,3167.4,1.91886221]
[1767804334801,2.13217049,3168.2,3167.4,1.91886221]
[1767804336116,1.93833681,3168.4,3166.1,0.002]
[1767804336398,1.93833681,3168.2,3166.5,5.07686252]
[1767804336606,1.93833681,3168.0,3166.5,5.07686252]
[1767804336917,1.93833681,3167.8,3166.5,1.91886221]
[1767804337400,1.93833681,3167.8,3166.2,1.91886221]
[1767804337578,1.93833681,3167.8,3166.2,5.90319374]
[1767804337977,1.93833681,3167.8,3166.2,0.826]
[1767804338172,1.93833681,3167.8,3166.1,0.828]
[1767804338496,1.93833681,3167.4,3166.1,0.828]
[1767804338697,1.93833681,3167.4,3166.1,0.002]
[1767804340815,1.93833681,3167.2,3166.1,0.002]
[1767804341899,1.93833681,3167.2,3166.1,1.92086221]
[1767804342994,3.15746266,3167.1,3166.1,5.07922601]
[1767804343200,6.31492532,3167.1,3166.3,1.91886221]
[1767804343506,3.15746266,3167.1,3166.3,1.91886221]
[1767804344807,5.09579947,3167.1,3166.3,1.91886221]
[1767804344981,8.25326213,3167.1,3166.3,1.91886221]
[1767804345185,1.93833681,3167.0,3166.2,0.90637851]
[1767804345396,1.93833681,3167.0,3166.3,0.40667423]
[1767804345599,1.93833681,3167.0,3166.4,0.002]
[1767804347100,5.09599887,3166.9,3166.4,0.002]
[1767804347492,1.93833681,3166.8,3166.4,0.002]
[1767804348203,1.93833681,3166.8,3166.0,1e-08]
[1767804348401,1.93833681,3166.6,3165.6,1.91886221]
[1767804348804,1.93833681,3166.6,3165.8,1.92086221]
[1767804349006,3.15766206,3166.9,3165.8,1.92086221]
[1767804349304,3.15746266,3167.1,3166.0,1.91886221]
[1767804349497,3.15746266,3167.1,3166.1,1.91886221]
[1767804349879,8.25326213,3167.1,3166.1,1.91886221]
[1767804350088,8.25326213,3167.1,3166.2,2.19334843]
[1767804350284,1.93833681,3167.0,3166.2,2.19334843]
[1767804350984,1.93833681,3167.0,3165.8,0.002]
[1767804351188,1.93833681,3166.8,3165.8,0.002]
[1767804351386,1.93833681,3166.8,3165.3,1.91886221]
[1767804353225,1.93833681,3166.6,3165.3,1.91886221]
[1767804354032,1.93833681,3166.6,3165.3,5.07809412]
[1767804354330,1.93833681,3166.4,3165.2,3.98731407]
[1767804354790,1.93833681,3166.4,3165.3,3.1592328]
[1767804354989,1.93833681,3166.4,3165.3,5.07809501]
[1767804355192,6.31652086,3166.3,3165.4,1.91886221]
[1767804355695,8.25485767,3166.3,3165.4,1.91886221]
[1767804356021,0.82548577,3166.2,3165.4,1.91886221]
[1767804357610,3.98393076,3166.2,3165.4,5.0780086]
[1767804358005,3.98393076,3166.2,3165.5,1.91886221]
[1767804358799,3.98393076,3166.2,3165.6,0.002]
[1767804359214,3.15819376,3166.4,3165.7,1.91886221]
[1767804360062,1.93833681,3166.4,3165.7,1.91886221]
[1767804360354,0.001,3166.5,3165.7,1.91886221]
[1767804360554,0.001,3166.5,3165.9,1.91886221]
[1767804361053,1.78655087,3166.5,3165.6,0.828]
[1767804361352,1.78555087,3166.3,3165.6,0.828]
[1767804361911,4.94385434,3166.3,3165.6,0.828]
[1767804362249,1.9624239,3166.3,3165.6,3.9869347]
[1767804362561,0.001,3166.5,3165.7,1.86012665]
[1767804362562,1.9654239,3166.5,3165.7,1.86012665]
[1767804362728,5.12349604,3166.5,3165.7,2.76072866]
[1767804363915,1.9654239,3166.5,3165.7,5.9195156]
[1767804364118,1.9644239,3167.6,3166.2,1.86012665]
[1767804364411,1.9644239,3167.6,3165.7,13.53596601]
[1767804364412,1.96342592,3167.6,3166.6,1.86012665]
[1767804364651,5.12108919,3167.9,3166.8,1.86012665]
[1767804364949,1.9644239,3167.8,3166.7,0.18601267]
[1767804365163,1.9644239,3167.8,3165.7,16.86096601]
[1767804365164,1.9644239,3167.8,3166.8,0.826]
[1767804365314,1.9644239,3167.8,3166.9,1.86012665]
[1767804366020,3.1568646,3167.7,3167.0,1.86012665]
[1767804366242,3.1568646,3167.7,3167.0,2.44143356]
[1767804366426,1.9644239,3167.6,3167.0,0.58130691]
[1767804366620,3.1568646,3167.7,3166.9,1.86012665]
[1767804367317,3.1568646,3167.7,3167.0,1.86012665]
[1767804367745,3.15680827,3167.8,3167.0,1.86012665]
[1767804367946,6.31361654,3167.8,3167.0,1.86012665]
[1767804368146,1.9644239,3167.7,3166.4,3.1581475]
[1767804368451,1.14348487,3167.6,3166.8,1.86012665]
[1767804369011,1.9644239,3167.7,3166.8,1.86012665]
[1767804369213,1.9644239,3167.7,3166.6,3.15794713]
[1767804369417,1.9644239,3167.7,3166.7,0.826]
[1767804369653,1.9644239,3167.7,3166.8,3.15771317]
[1767804369856,1.9644239,3167.7,3166.9,5.41614371]
[1767804370017,1.9644239,3167.7,3167.0,3.15749212]
[1767804370547,8.27819862,3167.7,3166.9,2.25849797]
[1767804370757,1.9644239,3167.6,3166.3,1.86012665]
[1767804370911,1.9644239,3167.6,3166.7,0.826]
[1767804372046,1.9644239,3167.4,3166.7,0.826]
[1767804372419,1.9644239,3167.4,3167.0,0.002]
[1767804372745,1.9644239,3167.3,3166.6,0.828]
[1767804373247,1.9644239,3167.3,3166.6,0.002]
[1767804373547,1.9644239,3167.3,3166.0,3.15851162]
[1767804373747,1.9644239,3167.3,3166.3,0.826]
[1767804373947,1.9644239,3167.3,3166.2,0.826]
[1767804374119,1.9644239,3167.0,3166.2,0.826]
[1767804374319,1.9644239,3167.0,3166.1,0.826]
[1767804376647,1.9644239,3167.0,3166.2,1.86012665]
[1767804376851,3.15746266,3167.1,3166.2,1.86012665]
[1767804377157,3.15737914,3167.2,3166.2,1.86012665]
[1767804377458,5.1212885,3167.7,3166.2,1.86012665]
[1767804377616,1.9644239,3167.6,3166.4,1.86012665]
[1767804378332,6.90865805,3167.7,3166.6,1.86012665]
[1767804378333,3.75179345,3167.7,3166.6,1.86012665]
[1767804378543,6.31352988,3167.8,3166.8,1.86012665]
[1767804378784,3.15676494,3167.8,3166.8,1.86012665]
[1767804379249,1.9644239,3167.7,3166.9,0.826]
[1767804380521,5.12134222,3167.7,3166.9,3.98364219]
[1767804380724,3.15691832,3167.7,3166.9,5.84376884]
[1767804380941,3.15691832,3167.7,3167.0,0.58437688]
[1767804381140,3.15691832,3167.7,3166.1,3.15840652]
[1767804381141,1.9644239,3167.6,3166.4,1.86012665]
[1767804381340,1.9644239,3167.6,3166.5,0.826]
[1767804381544,1.9644239,3167.6,3166.6,3.15786931]
[1767804381819,1.9644239,3167.6,3166.7,0.826]
[1767804382047,1.9644239,3167.4,3166.8,0.826]
[1767804382854,1.9644239,3167.2,3166.5,0.826]
[1767804383051,1.9644239,3167.2,3165.8,1.86012665]
[1767804383257,1.9644239,3167.2,3165.8,0.826]
[1767804383454,1.9644239,3167.2,3165.6,0.002]
[1767804383753,13.45705312,3167.3,3165.6,0.828]
[1767804383754,1.9644239,3167.0,3165.6,0.828]
[1767804384825,1.9644239,3166.8,3165.6,0.828]
[1767804385025,1.9644239,3166.6,3165.6,3.98694313]
[1767804385457,1.9644239,3166.6,3165.6,0.828]
[1767804386124,1.9644239,3166.6,3165.6,2.68812665]
[1767804386332,1.9644239,3166.8,3165.8,1.86012665]
[1767804386536,1.9644239,3166.8,3165.9,1.32789857]
[1767804387259,5.12228539,3166.7,3165.9,1.32789857]
[1767804387472,5.12228539,3166.7,3165.9,0.826]
[1767804388260,5.12228539,3166.7,3166.0,0.826]
[1767804388566,1.9644239,3166.6,3165.6,3.16090636]
[1767804388728,1.9644239,3166.6,3165.8,0.826]
[1767804389058,2.79243859,3166.6,3165.8,0.826]
[1767804389265,3.15806095,3166.5,3165.8,0.826]
[1767804389436,3.98597915,3166.6,3165.9,1.86012665]
[1767804389758,6.31552354,3166.8,3165.9,2.68612665]
[1767804390059,1.9644239,3166.7,3165.9,0.826]
[1767804391285,5.12238512,3166.6,3165.9,0.826]
[1767804391567,1.9644239,3167.0,3165.9,5.84477215]
[1767804391746,1.90130246,3166.9,3165.9,5.84477215]
[1767804391947,1.90130246,3166.9,3165.9,6.74512829]
[1767804392372,3.158494,3167.1,3166.0,1.7885577]
[1767804392666,0.001,3167.1,3166.0,1.7885577]
[1767804393036,1.02e-06,3167.1,3166.5,1.7885577]
[1767804393355,1.02e-06,3167.1,3166.7,3.15786149]
[1767804393680,1.02e-06,3167.1,3166.7,4.94641919]
[1767804394140,3.15607225,3167.5,3166.7,4.94641919]
[1767804394568,5.0580892,3167.8,3166.7,8.10428068]
[1767804395548,3.15672267,3167.9,3166.8,1.7885577]
[1767804395852,3.15672267,3167.9,3167.0,1.7885577]
[1767804396051,6.31344534,3167.9,3167.1,0.826]
[1767804396276,3.15672267,3167.9,3167.1,0.826]
[1767804397585,3.15656565,3168.0,3167.1,3.98339797]
[1767804397789,6.3131313,3168.0,3167.2,0.57719557]
[1767804397986,1.90130246,3168.4,3167.3,1.7885577]
[1767804398499,1.90130246,3168.4,3166.9,3.5603242]
[1767804398655,1.90130246,3168.4,3167.0,2.6145577]
[1767804398853,1.90130246,3168.2,3167.1,3.45918813]
[1767804399057,1.90130246,3168.2,3167.1,0.30172547]
[1767804399259,1.90130246,3168.2,3167.2,0.826]
[1767804399659,1.90130246,3168.0,3167.2,0.826]
[1767804400366,1.90130246,3168.0,3166.6,0.17885577]
[1767804400558,1.90130246,3168.0,3166.7,0.826]
[1767804401189,1.90130246,3168.0,3166.4,4.94671738]
[1767804401390,1.90130246,3168.0,3166.0,17.65852884]
[1767804401391,1.90130246,3168.0,3166.9,1.7885577]
[1767804401695,0.828,3168.2,3166.0,14.5]
[1767804401696,3.15639356,3168.2,3167.2,1.7885577]
[1767804401910,3.15639356,3168.2,3167.3,0.4945993]
[1767804402071,1.90130246,3168.2,3167.3,2.283157]
[1767804402266,6.31265044,3168.3,3167.4,1.7885577]
[1767804402590,8.2139529,3168.3,3167.4,1.7885577]
[1767804402789,8.2139529,3168.3,3167.4,2.0994734]
[1767804403412,1.90130246,3168.2,3167.5,0.826]
[1767804403611,3.15646602,3168.1,3167.5,0.826]
[1767804404466,5.05776848,3168.1,3167.5,0.826]
[1767804404961,3.15631639,3168.3,3167.5,6.21939784]
[1767804405166,1.90130246,3168.4,3167.6,1.7885577]
[1767804405589,8.21368025,3168.4,3167.6,1.7885577]
[1767804405767,8.21368025,3168.4,3167.6,0.826]
[1767804406694,8.21368025,3168.4,3167.5,0.4477861]
[1767804406877,1.90130246,3168.3,3167.6,0.826]
[1767804407710,1.90130246,3168.3,3167.6,3.98294186]
[1767804407916,1.90130246,3168.8,3167.7,0.4430728]
[1767804408273,1.90130246,3168.8,3167.7,2.2316305]
[1767804408614,1.02e-06,3168.1,3167.7,2.2316305]
[1767804409189,1.02e-06,3168.1,3167.7,5.38848148]
[1767804409388,1.02e-06,3168.1,3167.8,0.62144815]
[1767804409802,1.90030448,3168.6,3167.8,0.62144815]
[1767804410181,3.15586833,3168.7,3167.9,1.7885577]
[1767804410386,6.31173666,3168.7,3167.9,1.7885577]
[1767804410608,1.90130246,3168.6,3167.7,0.4430728]
[1767804411211,3.15606753,3168.5,3167.7,0.4430728]
[1767804411580,1.90130246,3168.4,3167.7,0.4430728]
[1767804411783,1.90130246,3168.4,3167.6,0.826]
[1767804412801,1.90130246,3168.4,3167.6,1.7885577]
[1767804413085,1.90130246,3168.2,3167.7,0.826]
[1767804413906,1.90130246,3168.2,3167.6,0.826]
[1767804414102,1.90130246,3168.2,3167.6,1.40336913]
[1767804414411,1.90130246,3168.6,3167.6,4.560311]
[1767804414616,1.90130246,3168.6,3167.6,3.19192683]
[1767804414816,1.90130246,3168.6,3167.6,6.34884158]
[1767804415110,3.15606753,3168.5,3167.7,2.42344186]
[1767804415325,5.05728524,3168.6,3167.7,2.42344186]
[1767804415688,8.21326802,3168.6,3167.7,2.42344186]
[1767804415896,5.05728524,3168.6,3167.7,2.42344186]
[1767804416313,1.90130246,3168.5,3167.7,0.63488416]
[1767804416552,1.90130246,3168.5,3167.6,0.826]
[1767804417062,3.15616715,3168.4,3167.6,0.826]
[1767804417355,1.90130246,3168.3,3167.4,0.002]
[1767804417535,1.90130246,3168.3,3167.5,0.826]
[1767804418454,6.3123343,3168.4,3167.5,0.826]
[1767804418455,1.90130246,3168.7,3167.7,1.7885577]
[1767804418642,1.90130246,3168.7,3167.8,2.28310876]
[1767804419546,8.21323832,3168.6,3167.8,2.28310876]
[1767804419926,1.90130246,3168.5,3167.5,1.7885577]
[1767804420177,1.90130246,3168.5,3167.4,0.002]
[1767804420349,1.90130246,3168.5,3167.5,0.826]
[1767804420876,1.90130246,3168.5,3167.4,0.002]
[1767804421072,1.8214184,3168.3,3167.9,0.002]
[1767804421273,1.8214184,3168.3,3167.5,0.002]
[1767804421446,1.8214184,3168.1,3167.5,0.002]
[1767804422873,3.15636639,3168.2,3167.5,0.002]
[1767804423062,3.15630873,3168.3,3167.6,0.826]
[1767804423442,1.93621587,3168.4,3167.6,3.98294228]
[1767804423645,1.93621587,3168.8,3167.7,0.59500529]
[1767804424648,1.93621587,3168.8,3167.7,2.56011586]
[1767804425781,1.93621587,3168.6,3167.7,0.59500529]
[1767804426283,1.93621587,3168.6,3167.8,0.826]
[1767804427553,1.93621587,3168.6,3167.7,0.59500529]
[1767804427747,1.93621587,3168.4,3167.5,0.002]
[1767804427954,1.93621587,3168.4,3167.2,0.826]
[1767804428480,1.93621587,3168.4,3166.7,0.826]
[1767804428776,1.93621587,3168.4,3166.3,0.002]
[1767804428777,1.93621587,3168.2,3166.3,0.002]
[1767804428978,16.79401097,3168.4,3166.3,0.002]
[1767804428979,1.93621587,3167.9,3166.3,0.002]
[1767804429369,1.93621587,3167.7,3165.6,0.002]
[1767804429574,1.93621587,3167.5,3165.7,0.826]
[1767804429874,0.828,3167.6,3165.8,3.15874825]
[1767804429875,1.93621587,3167.3,3165.8,3.15874825]
[1767804430181,1.93621587,3167.3,3165.7,3.98481825]
[1767804430788,1.93621587,3167.2,3165.6,0.002]
[1767804430960,1.93621587,3167.2,3165.7,0.826]
[1767804431578,1.93621587,3167.2,3165.6,0.002]
[1767804431763,13.73307599,3167.4,3165.6,0.002]
[1767804431764,1.93621587,3166.9,3165.6,0.002]
[1767804433791,1.93621587,3166.7,3165.6,0.002]
[1767804434094,1.93621587,3166.7,3166.0,0.002]
[1767804435754,1.93621587,3166.5,3165.6,0.002]
[1767804435949,1.93621587,3166.3,3165.6,0.002]
[1767804437754,1.14100995,3166.4,3165.2,0.002]
[1767804437755,1.93621587,3166.1,3165.2,0.002]
[1767804437975,1.93621587,3166.1,3164.9,0.002]
[1767804439051,1.93621587,3166.1,3164.9,1.96711057]
[1767804439693,1.93621587,3166.1,3164.9,0.002]
[1767804439899,1.93621587,3165.8,3164.9,0.002]
[1767804440802,1.93621587,3165.8,3164.6,1.96711057]
[1767804441861,1.93621587,3165.6,3164.6,1.96711057]
[1767804442459,1.93621587,3165.6,3164.6,0.002]
[1767804442668,1.93621587,3165.4,3164.6,0.002]
[1767804443858,1.93621587,3165.2,3164.3,0.002]
[1767804444898,1.93621587,3165.2,3164.3,5.12736328]
[1767804445193,5.09547407,3165.3,3164.4,1.96511057]
[1767804445563,5.09547407,3165.3,3164.3,0.002]
[1767804445564,1.93621587,3165.2,3164.3,0.002]
[1767804445986,1.93621587,3165.0,3164.3,0.002]
[1767804446897,1.93621587,3165.0,3164.9,0.002]
[1767804447096,0.001,3165.1,3164.3,0.002]
[1767804447400,0.001,3165.1,3164.5,1.96711057]
[1767804447590,0.001,3165.1,3164.5,0.002]
[1767804447785,1.93721587,3165.1,3164.5,0.002]
[1767804447991,0.001,3165.1,3164.5,1.96711057]
[1767804450299,0.001,3165.1,3164.5,5.12715112]
[1767804450594,0.001,3165.1,3164.6,1.96511057]
[1767804452202,0.001,3165.1,3164.5,0.002]
[1767804454089,0.828,3165.9,3164.5,0.002]
[1767804454090,1.88499133,3166.3,3164.6,1.87427718]
[1767804454289,1.88499133,3166.2,3164.8,1.87427718]
[1767804454797,1.88499133,3166.2,3164.9,1.87427718]
[1767804455000,1.88499133,3166.0,3164.9,2.1444049]
[1767804456269,5.04358494,3166.0,3165.0,6.31911532]
[1767804456609,5.04325176,3166.3,3165.1,1.87427718]
[1767804457384,1.88499133,3166.3,3165.1,1.87427718]
[1767804457686,1.88499133,3166.3,3165.3,1.87427718]
[1767804457907,1.88499133,3166.3,3165.4,1.87427718]
[1767804458104,1.88499133,3166.3,3165.4,2.70127718]
[1767804458468,6.31672034,3166.2,3165.4,2.70127718]
[1767804458896,5.0433515,3166.2,3165.4,1.87427718]
[1767804459272,0.001,3166.0,3165.4,1.87427718]
[1767804459893,0.001,3166.0,3165.5,1.87427718]
[1767804462313,0.001,3166.0,3165.2,1.87427718]
[1767804462516,5.04462409,3166.0,3165.4,0.827]
[1767804463576,0.001,3166.0,3165.5,1.87427718]
[1767804463788,0.001,3166.0,3165.7,1.87427718]
[1767804466588,0.001,3166.0,3165.7,5.03305163]
[1767804466991,0.001,3166.0,3165.7,1.87427718]
[1767804468109,0.001,3166.0,3165.5,1.87427718]
[1767804468315,0.001,3166.0,3165.6,1.87427718]
[1767804469012,0.001,3166.0,3165.7,1.87427718]
[1767804471582,1.88599133,3166.0,3165.0,1.87427718]
[1767804471781,1.88599133,3166.0,3164.9,0.002]
[1767804471983,1.88499133,3165.8,3164.9,0.002]
[1767804472312,1.88499133,3165.8,3164.5,1.87627718]
[1767804472723,1.88499133,3165.8,3164.5,0.002]
[1767804473831,1.88499133,3165.6,3164.5,0.002]
[1767804474730,1.88499133,3165.6,3164.5,1.87627718]
[1767804475826,1.88499133,3165.4,3164.5,1.87627718]
[1767804476452,1.88499133,3165.4,3164.5,0.002]
[1767804478205,1.88499133,3165.2,3164.5,0.002]
[1767804478403,0.82035077,3165.1,3164.5,1.87627718]
[1767804478743,1.88499133,3165.3,3164.5,1.87627718]
[1767804479736,1.88499133,3165.3,3164.5,0.002]
[1767804480519,1.88499133,3165.2,3164.5,0.002]
[1767804480828,8.20367035,3165.3,3164.5,1.87627718]
[1767804481029,1.88499133,3165.2,3164.5,0.002]
[1767804481206,0.82036704,3165.1,3164.5,0.002]
[1767804481746,2.70535837,3165.1,3164.5,0.002]
[1767804482029,1.82312578,3165.0,3164.5,0.002]
[1767804482327,1.82312578,3165.0,3164.8,0.002]
[1767804482542,4.98278327,3164.9,3164.5,0.002]
[1767804482830,1.82312578,3164.8,3164.3,0.002]
[1767804483130,1.82312578,3164.8,3164.0,0.002]
[1767804484501,1.80408092,3164.6,3164.0,0.002]
[1767804486630,1.80408092,3164.4,3163.2,1.82980605]
[1767804486933,1.80408092,3164.2,3163.2,2.65680605]
[1767804487305,1.80408092,3164.2,3163.2,1.82980605]
[1767804487517,1.80408092,3164.2,3163.3,1.82780605]
[1767804487925,1.80408092,3164.2,3163.2,0.002]
[1767804488638,1.80408092,3164.0,3163.2,0.002]
[1767804488839,2.30053465,3163.9,3163.2,0.002]
[1767804489212,2.30053465,3163.9,3163.2,1.82980605]
[1767804490721,4.96483697,3163.8,3163.2,0.002]
[1767804491040,1.80408092,3163.7,3163.2,0.002]
[1767804493665,4.96495639,3163.7,3163.2,0.002]
[1767804493939,5.82716525,3163.7,3163.2,0.002]
[1767804494118,2.66628978,3163.7,3163.2,0.002]
[1767804494322,1.80408092,3163.7,3163.2,0.002]
[1767804495152,0.001,3163.9,3163.2,1.82980605]
[1767804495153,1.80508092,3163.9,3163.2,1.82980605]
[1767804495330,4.96575066,3163.9,3163.2,1.82980605]
[1767804495530,0.81263136,3163.8,3163.2,1.82980605]
[1767804495862,0.001,3163.9,3163.2,1.82980605]
[1767804496272,1.80408092,3163.8,3163.2,1.82980605]
[1767804496427,1.80408092,3163.8,3163.2,0.002]
[1767804496965,1.80408092,3163.7,3163.2,0.002]
[1767804497123,2.30066877,3163.7,3163.2,0.002]
[1767804498037,1.80408092,3163.6,3163.2,0.002]
[1767804498928,1.80408092,3163.4,3163.0,0.002]
[1767804500158,1.80408092,3163.4,3162.8,0.002]
[1767804500519,1.80408092,3163.6,3162.8,1.82980605]
[1767804500818,0.49649433,3163.5,3162.8,1.82980605]
[1767804501023,3.65757739,3163.5,3162.8,1.82980605]
[1767804501225,4.96516398,3163.5,3162.8,1.82980605]
[1767804501749,1.80408092,3163.4,3162.8,0.002]
[1767804502753,1.80408092,3163.4,3162.8,1.82980605]
[1767804503057,4.96516398,3163.5,3162.8,1.82980605]
[1767804503230,0.81261277,3163.4,3162.8,1.82980605]
[1767804504233,2.61669369,3163.4,3162.8,1.82980605]
[1767804505041,5.77587796,3163.4,3162.8,1.82980605]
[1767804505634,8.93706223,3163.4,3163.0,0.094846]
[1767804505830,1.80408092,3163.3,3162.8,0.002]
[1767804506032,2.69778714,3163.3,3162.8,0.002]
[1767804506351,0.001,3163.1,3162.8,0.002]
[1767804506525,0.00541929,3163.0,3162.8,0.002]
[1767804509069,1.80750021,3163.0,3162.8,0.002]
[1767804509240,1.80408092,3162.9,3162.5,0.002]
[1767804509543,1.80408092,3162.7,3162.4,0.002]
[1767804511764,1.80208092,3162.7,3162.4,0.002]
[1767804514949,1.97422184,3162.9,3162.4,0.002]
[1767804516049,1.97422184,3162.8,3162.4,0.002]
[1767804518278,1.97422184,3162.8,3162.7,0.002]
[1767804518577,1.97422184,3162.8,3162.4,0.002]
[1767804520085,0.00341929,3163.0,3162.4,1.98045663]
[1767804520246,0.00141929,3163.0,3162.6,1.97845663]
[1767804521780,0.00141929,3163.0,3162.6,2.80545663]
[1767804522570,0.00141929,3163.0,3162.6,5.96738246]
[1767804524087,0.00141929,3163.0,3162.6,1.97845663]
[1767804524286,1.97564113,3163.0,3162.5,4.18705924]
[1767804524584,1.97564113,3163.0,3162.6,0.61675159]
[1767804524875,0.00141929,3163.0,3162.6,2.59520822]
[1767804526377,0.00141929,3163.0,3162.7,1.97845663]
[1767804526556,0.001,3163.1,3162.8,1.97845663]
[1767804526962,0.001,3163.1,3162.8,5.14018588]
[1767804527162,0.001,3163.1,3162.8,5.97039761]
[1767804527348,0.001,3163.1,3162.8,3.99194098]
[1767804527555,0.001,3163.1,3162.8,0.83021173]
[1767804528248,0.001,3163.1,3162.8,3.99190511]
[1767804528454,0.001,3163.1,3162.8,0.83021173]
[1767804528754,1.97522184,3163.1,3162.5,1.02504566]
[1767804528962,1.97522184,3163.1,3162.4,0.002]
[1767804529259,1.97522184,3163.1,3162.5,0.827]
[1767804529576,1.97522184,3163.1,3162.4,0.002]
[1767804529777,1.97522184,3163.1,3162.0,0.002]
[1767804529981,1.97422184,3162.9,3162.0,0.002]
[1767804530158,1.97422184,3162.9,3162.7,0.002]
[1767804530369,1.97422184,3162.7,3162.0,0.002]
[1767804530564,1.97422184,3162.7,3162.4,0.002]
[1767804530777,1.97422184,3162.7,3162.0,0.002]
[1767804531081,1.97422184,3162.4,3162.0,0.002]
[1767804531859,1.97422184,3162.4,3161.7,0.002]
[1767804532381,1.97422184,3162.4,3161.7,1.98045663]
[1767804532683,1.97422184,3162.4,3161.7,5.14330799]
[1767804533282,1.97422184,3162.7,3161.9,1.97845663]
[1767804533483,1.97422184,3162.7,3162.0,1.97845663]
[1767804536080,1.97422184,3162.7,3162.1,3.16245533]
[1767804537370,1.97422184,3162.7,3162.1,5.14091196]
[1767804537565,1.97422184,3162.7,3162.1,3.16245533]
[1767804538073,1.97422184,3162.7,3162.0,3.16254575]
[1767804539494,0.001,3162.8,3162.1,1.97845663]
[1767804539959,1.97522184,3162.8,3162.1,1.97845663]
[1767804540498,1.97522184,3162.8,3162.2,3.16235532]
[1767804541693,1.97522184,3162.8,3162.0,0.50056665]
[1767804541694,1.97522184,3162.8,3162.0,3.66308455]
[1767804541870,1.97522184,3162.8,3161.9,3.16260248]
[1767804541871,1.96117131,3162.7,3161.9,3.16260248]
[1767804542074,1.96117131,3162.7,3161.8,2.72639746]
[1767804542292,1.96117131,3162.7,3162.0,0.002]
[1767804542463,6.32451742,3162.8,3161.7,0.002]
[1767804542464,1.96217131,3162.5,3161.7,0.002]
[1767804542669,1.96117131,3162.3,3161.7,0.002]
[1767804542976,1.96117131,3162.3,3161.2,0.002]
[1767804542977,1.96117131,3162.3,3161.6,0.002]
[1767804544485,1.96117131,3162.1,3161.6,0.002]
[1767804545997,1.96117131,3162.1,3161.2,0.002]
[1767804546201,1.96117131,3161.9,3161.2,0.002]
[1767804546684,3.16275539,3161.8,3161.2,0.002]
[1767804546884,5.1239267,3161.8,3161.2,0.002]
[1767804547080,1.96117131,3161.7,3161.2,0.002]
[1767804547498,1.96117131,3161.5,3161.2,0.002]
[1767804549520,1.96117131,3161.4,3161.2,0.002]
[1767804549712,1.96117131,3161.4,3161.1,0.002]
[1767804551622,1.96117131,3161.3,3159.9,1.89939746]
[1767804551794,1.96117131,3161.1,3160.3,3.16420022]
[1767804552200,1.96117131,3161.1,3160.2,5.06373045]
[1767804552602,1.96117131,3161.1,3160.2,3.16433299]
[1767804553404,1.96117131,3160.9,3160.1,3.99242845]
[1767804553613,1.96117131,3160.9,3160.0,1.89939746]
[1767804553614,1.96117131,3160.9,3160.0,2.72739746]
[1767804553814,1.96117131,3160.9,3159.8,1.89939746]
[1767804554111,1.96117131,3160.7,3159.8,1.89939746]
[1767804554292,1.96117131,3160.7,3159.5,0.828]
[1767804554293,1.96117131,3160.7,3159.5,2.72739746]
[1767804554500,1.96117131,3160.5,3159.8,1.89939746]
[1767804554719,0.27899996,3160.6,3159.9,5.06399887]
[1767804554892,1.96117131,3160.7,3159.9,1.89939746]
[1767804555216,1.96117131,3160.7,3159.2,1.89939746]
[1767804555394,0.8288283,3160.8,3159.4,3.99310365]
[1767804555395,1.96117131,3160.5,3159.4,3.99310365]
[1767804555588,1.96117131,3160.5,3159.4,3.16510365]
[1767804555795,1.96117131,3160.3,3159.4,3.16510365]
[1767804555994,1.96117131,3160.3,3159.4,5.06450111]
[1767804556520,1.96117131,3160.3,3159.4,5.06650111]
[1767804556728,1.96117131,3160.3,3159.4,8.23165905]
[1767804557027,2.24017928,3160.3,3159.4,8.23165905]
[1767804557235,2.24017928,3160.3,3159.4,5.06650111]
[1767804557393,1.96117131,3160.2,3159.4,3.16715794]
[1767804558106,1.96117131,3160.2,3159.4,6.33231588]
[1767804558303,3.16410488,3160.5,3159.5,1.89939746]
[1767804558614,2.2775818,3160.4,3159.5,1.89939746]